Cogmind - Beta 13 @@@ ROGUE MODE // 2024.04.14 @ 17:25:21 Player: Millea Result: Destroyed by H-55 Commando with Gauss Rifle Performance ------------- Evolutions (2) 1000 Regions Visited (4) 800 Robots Destroyed (94) 470 Value Destroyed (3195) 3195 Prototype IDs (10) 200 Alien Tech Used (0) 0 Bonus (899) 899 TOTAL SCORE: 6564 Bonus ------- High Alert Combat Kills 699 Entered Garrisons 200 Cogmind --------- Core Integrity 0/550 Matter 132/300 Energy 84/100 System Corruption 0% Temperature Cool (0) Movement Core (1450) Ox28 Location -8/Garrison Parts ------- > --- POWER (1) -------- (None) > --- PROPULSION (4) --- (None) > --- UTILITY (4) ------ Huge Storage Unit Trap Scanner > --- WEAPON (2) ------- Ripper > --- INVENTORY (25) --- Improved Heat Sink Light Armor Plating System Shield Authchip [R/NC] Authchip [R/Combat] Authchip [R/Combat] Authchip [R/Combat] Authchip [R/Combat] Authchip [R/Combat] Authchip [R/Combat] Authchip [R/Combat] Authchip [R/Combat] Authchip [R/Combat] Authchip [R/Combat] Authchip [R/Combat] Authchip [R/Combat] Authchip [R/Combat] Authchip [R/Combat] Authchip [R/Combat] Mini Grenade Launcher Multitool Katana Peak State ------------ > --- POWER ------------ Nuclear Core > --- PROPULSION ------- Flightbrick > --- UTILITY ---------- Disposable Heat Sink Huge Storage Unit Trap Scanner Improved Light Armor Plating > --- WEAPON ----------- Minigun Minigun > --- INVENTORY -------- Light Armor Plating System Shield Authchip [R/NC] Authchip [R/Combat] Authchip [R/Combat] Authchip [R/Combat] Authchip [R/Combat] Authchip [R/Combat] Authchip [R/Combat] Authchip [R/Combat] Authchip [R/Combat] Authchip [R/Combat] Authchip [R/Combat] Authchip [R/Combat] Authchip [R/Combat] Authchip [R/Combat] Authchip [R/Combat] Authchip [R/Combat] Medium Laser EM Pulse Cannon Mini Grenade Launcher Multitool Katana Ripper [Rating: 62] Favorites ----------- Power Nuclear Core Engine Light Ion Engine Power Core Nuclear Core Propulsion Light Treads Treads Light Treads Wheel Wheel Flight Unit Flightbrick Utility Huge Storage Unit Device Trap Scanner Storage Huge Storage Unit Protection Hardened Light Armor Plating Weapon Small Laser Energy Gun Small Laser Ballistic Gun Light Assault Rifle Launcher Mini Grenade Launcher Slashing Weapon Ripper Build | -11 -10 -10 -8 -8 ------- Run | Yrd Mat Sub Mat Gar Slots Evolved 4 | . . . 4 . Power . | . . . . . Propulsion 2 | . . . 2 . Utility 2 | . . . 2 . Weapon . | . . . . . Parts Attached 73 | 6 8 12 30 17 Power 6 | 1 1 2 2 . Engine 4 | 1 1 2 . . Core 2 | . . . 2 . Reactor . | . . . . . Propulsion 9 | 2 2 2 1 2 Treads 3 | 2 . 1 . . Leg . | . . . . . Wheel 3 | . 2 1 . . Hover . | . . . . . Flight 3 | . . . 1 2 Utility 16 | 1 4 3 7 1 Device 5 | . 2 1 2 . Storage 4 | 1 2 . 1 . Processor . | . . . . . Hackware . | . . . . . Protection 7 | . . 2 4 1 Artifact . | . . . . . Weapon 42 | 2 1 5 20 14 Energy Gun 4 | 1 . 2 1 . Energy Cannon . | . . . . . Ballistic Gun 17 | 1 1 2 7 6 Ballistic Cannon . | . . . . . Launcher 10 | . . . 8 2 Special Weapon . | . . . . . Impact Weapon . | . . . . . Slashing Weapon 11 | . . 1 4 6 Piercing Weapon . | . . . . . Special Melee Weapon . | . . . . . Unidentified Prototypes . | . . . . . Parts Lost 21 | . 3 8 2 8 Power 4 | . 1 2 . 1 Propulsion 6 | . 1 2 . 3 Utility 5 | . . 1 2 2 Weapon 6 | . 1 3 . 2 Highest Loss Streak 6 | . 2 6 1 5 To Critical Strikes 1 | . . . . 1 Average Slot Usage (%) 72 | . 90 93 51 50 Engine 6 | . 13 11 . . Core 3 | . . . 6 4 Treads 6 | . 19 . . . Wheel 5 | . . 27 . . Flight 3 | . . . 7 7 Device 7 | . 13 2 3 10 Storage 9 | . 14 11 6 7 Protection 6 | . . 10 12 6 Energy Gun 7 | . 14 11 1 . Ballistic Gun 10 | . 14 14 5 8 Launcher 1 | . . . 3 . Slashing Weapon 2 | . . 2 3 4 Naked Turns . | . . . . . Heaviest Build 115 | 13 46 57 115 101 Greatest Support 40 | 40 40 30 24 24 Greatest Overweight (x) 29 | . 4 4 4 29 Average Overweight (x) 2 | . . . 3 3 Largest Inventory Capacity 25 | 8 20 20 25 25 Average Capacity 20 | 7 17 16 23 25 Most Carried 25 | 2 13 20 25 25 Average Carried 15 | 1 6 15 20 23 Final Capacity 25 | 8 20 5 25 25 Final Carried 22 | 2 13 5 21 22 Class Distribution -------------------- 94% | Mutant 4% | Scavenger-Mutant Dominant Class ---------------- Mutant | -10/Materials Mutant | -10/Subcaves Mutant | -8/Materials Mutant | -8/Garrison Resources | -11 -10 -10 -8 -8 ----------- Run | Yrd Mat Sub Mat Gar Matter Collected 1960 | 252 151 163 1091 303 Remotely . | . . . . . Salvage Created 2940 | . 340 359 1439 802 Parts 176 | . 26 21 92 37 Haulers Intercepted 3 | . . . 3 . Recyclers Shooed 3 | . 1 . 2 . Parts Field Recycled . | . . . . . Retrieved Matter . | . . . . . Parts Self-Destructed 8 | . . 8 . . Prevented . | . . . . . Kills | -11 -10 -10 -8 -8 ------- Run | Yrd Mat Sub Mat Gar Combat Hostiles Destroyed 76 | . 8 10 38 20 Melee 11 | . . 2 3 6 Guns 37 | . 8 8 9 12 AOE 28 | . . . 26 2 Classes Destroyed 16 | . 4 2 9 1 Worker 2 | . . . 2 . Builder 5 | . 2 . 3 . Tunneler 1 | . 1 . . . Hauler 3 | . . . 3 . Recycler 3 | . . . 3 . Operator 1 | . . . 1 . Watcher 3 | . . . 3 . Swarmer 18 | . 3 3 8 4 Grunt 34 | . 5 . 18 11 Brawler 3 | . . . . 3 Duelist 3 | . . . 2 1 Protector 1 | . . . 1 . Sentry 8 | . . . 7 1 Hunter 2 | . . . 2 . Artisan 1 | . . 1 . . Subdweller 7 | . . 7 . . Best Kill Streak 10 | . 3 3 10 7 Combat Bots Only 7 | . 3 3 7 7 Max Kills in Single Turn 5 | . 2 2 5 1 Gunslinging 1 | . . 1 . . Exploded 4 | . . . 4 1 Melee 1 | . . 1 1 1 Uniques/NPCs Destroyed . | . . . . . Combat | -11 -10 -10 -8 -8 -------- Run | Yrd Mat Sub Mat Gar Hostile Shots Fired 434 | . 72 60 128 174 Missed 96 | . 13 18 35 30 Damage Taken 4907 | . 618 686 1686 1917 Core 776 | . 89 130 201 356 Absorbed by Shields 12 | . . . . 12 Ignored by Resistances 21 | . . 21 . . Core Remaining (%) 56 | 100 . 12 . . Volleys Fired 192 | . 46 40 69 37 Largest 2 | . 2 2 2 2 Hottest 79 | . 60 70 79 60 Shots Fired 362 | . 92 67 130 73 Gun 317 | . 92 67 92 66 Cannon . | . . . . . Launcher 45 | . . . 38 7 Special . | . . . . . Kinetic 218 | . 46 40 66 66 Thermal 92 | . 46 20 26 . Explosive 45 | . . . 38 7 Electromagnetic 7 | . . 7 . . Robot Hit Streak 12 | . 10 9 11 12 Robot Miss Streak 3 | . 3 2 3 3 Penetration Max . | . . . . . Secondary Targets 10 | . 3 1 2 4 Max Gunslinging Chain 1 | . 1 1 1 1 Shots Hit Robots 251 | . 59 50 85 57 Core Hits 174 | . 20 17 102 35 Critical Kills 1 | . . . 1 . Critical Parts Destroyed . | . . . . . Critical Strikes 3 | . . . 2 1 Destroy 1 | . . . 1 . Sever 2 | . . . 1 1 Melee Attacks 45 | . . 9 12 24 Impact . | . . . . . Slashing 45 | . . 9 12 24 Piercing . | . . . . . Sneak Attacks . | . . . . . Combat Hostiles . | . . . . . Follow-up Attacks 4 | . . . 1 3 Damage Inflicted 7610 | . 660 749 4568 1633 Guns 2905 | . 656 622 951 676 Cannons . | . . . . . Explosions 3875 | . . . 3342 533 Melee 802 | . . 127 269 406 Ramming 28 | . 4 . 6 18 Kinetic 2088 | . 354 371 687 676 Thermal 917 | . 302 209 406 . Explosive 3733 | . . . 3200 533 Electromagnetic 42 | . . 42 . . Impact . | . . . . . Slashing 802 | . . 127 269 406 Piercing . | . . . . . Highest Corruption . | . . . . . Average Corruption . | . . . . . Corruption Purged . | . . . . . Corruption Blocked . | . . . . . Overload Shots . | . . . . . Overflow Damage 109 | . . . 62 47 Projectiles . | . . . . . Explosions 83 | . . . 36 47 Melee 26 | . . . 26 . Knockbacks . | . . . . . Impact . | . . . . . Kinetic . | . . . . . Secondary . | . . . . . Self-Inflicted Damage 264 | . . . 256 8 Shots 8 | . . . 8 . Rammed 6 | . 2 . 1 3 Targets Rammed 6 | . 2 . 1 3 Kicked . | . . . . . Crushed . | . . . . . Highest Temperature 385 | . 225 . 385 219 Average Temperature 87 | . 70 . 100 73 Received Heat Transfer 1695 | . 276 78 603 738 Effects 2 | . . . 2 . Shutdowns 1 | . . . 1 . Energy Bleed 1 | . . . 1 . Siege Activations . | . . . . . Robots Corrupted . | . . . . . Combat Hostiles . | . . . . . Parts Fried . | . . . . . Impact Corruptions . | . . . . . Robots Melted . | . . . . . Combat Hostiles . | . . . . . Parts Melted 3 | . 3 . . . Heat Transferred 1916 | . 675 475 766 . Parts Sabotaged . | . . . . . Parts Stolen . | . . . . . Parts Stripped . | . . . . . Power Chain Reactions . | . . . . . Alert | -11 -10 -10 -8 -8 ------- Run | Yrd Mat Sub Mat Gar Peak Influence 1204 | . 161 . 980 1204 Initial 639 | . . . . 639 Average 391 | . 19 . 513 910 Maximum Alert Level 4 | . . . 3 4 Low Security (%) 44 | 100 100 . 9 . Level 1 11 | . . . 29 . Level 2 21 | . . . 39 30 Level 3 16 | . . . 20 42 Level 4 5 | . . . . 27 Level 5 . | . . . . . High Security . | . . . . . Max Security . | . . . . . Squads Dispatched 7 | . 1 . 6 . Investigation 2 | . 1 . 1 . Extermination . | . . . . . Reinforcement 3 | . . . 3 . Assault 1 | . . . 1 . Garrison 1 | . . . 1 . Intercept . | . . . . . Searches Triggered . | . . . . . Construction Impeded 2 | . . . 2 . Haulers Reinforced . | . . . . . Active Scanning Responses . | . . . . . Cargo Convoy Interrupts . | . . . . . Stealth | -11 -10 -10 -8 -8 --------- Run | Yrd Mat Sub Mat Gar Distress Signals 5 | . 1 . 4 . Communications Jammed . | . . . . . Distress Signals . | . . . . . Times Spotted 104 | . 13 13 54 24 Peak Tracking Total 7 | . 5 6 7 5 Tactical Retreats 2 | . . 1 . 1 Traps | -11 -10 -10 -8 -8 ------- Run | Yrd Mat Sub Mat Gar Traps Triggered 8 | . 1 . 1 6 Indirectly . | . . . . . Trap Hack Attempts . | . . . . . Triggered . | . . . . . Disarmed . | . . . . . Reprogrammed . | . . . . . Reused . | . . . . . Traps Extracted . | . . . . . Installed . | . . . . . Triggered . | . . . . . Machines | -11 -10 -10 -8 -8 ---------- Run | Yrd Mat Sub Mat Gar Machines Disabled 12 | . . 1 10 1 Max in Single Turn 1 | . . 1 1 1 Garrison Relay 1 | . . . . 1 Machines Repaired . | . . . . . Machines Dismantled . | . . . . . Machines Sabotaged . | . . . . . Overloaded Fab Kills . | . . . . . Hacking | -11 -10 -10 -8 -8 --------- Run | Yrd Mat Sub Mat Gar Machines Accessed 7 | . 3 1 2 1 Terminals 4 | . 3 . . 1 Fabricators . | . . . . . Repair Stations . | . . . . . Recycling Units . | . . . . . Scanalyzers 1 | . . . 1 . Garrison Access 1 | . . . 1 . Total Hacks 22 | . 7 9 4 2 Successful 15 | . 3 9 3 . Failed 7 | . 4 . 1 2 Catastrophic 2 | . 1 . . 1 Database Lockouts . | . . . . . Manual 2 | . 2 . . . Terminals 9 | . 7 . . 2 Fabricators . | . . . . . Repair Stations . | . . . . . Recycling Units . | . . . . . Scanalyzers 3 | . . . 3 . Garrison Access 1 | . . . 1 . Terminal Hacks 12 | . 3 9 . . Record 8 | . . 8 . . Unreport Threat 1 | . 1 . . . Locate Traps 1 | . 1 . . . Zone Layout 1 | . 1 . . . Derelict Proto ID Bank 1 | . . 1 . . Fabricator Hacks . | . . . . . Repair Station Hacks . | . . . . . Recycling Unit Hacks . | . . . . . Scanalyzer 2 | . . . 2 . Insert Component 1 | . . . 1 . Analyze 1 | . . . 1 . Garrison Access Hacks 1 | . . . 1 . Unlock Access 1 | . . . 1 . Unauthorized Hacks . | . . . . . Terminals . | . . . . . Fabricators . | . . . . . Repair Stations . | . . . . . Recycling Units . | . . . . . Scanalyzers . | . . . . . Garrison Access . | . . . . . Data Cores Recovered . | . . . . . Used . | . . . . . Hacking Detections 4 | . 2 . 1 1 Full Trace Events 1 | . . . . 1 Feedback Events . | . . . . . Feedback Blocked . | . . . . . Robot Schematics Acquired . | . . . . . Robots Built . | . . . . . Authchips . | . . . . . Time . | . . . . . Total Robot Build Rating . | . . . . . Part Schematics Acquired 1 | . . . 1 . Parts Built . | . . . . . Authchips . | . . . . . Time . | . . . . . Total Part Build Rating . | . . . . . Parts Repaired . | . . . . . Time . | . . . . . Parts Recycled . | . . . . . Recycled Matter . | . . . . . Retrieved Matter . | . . . . . Retrieved Components . | . . . . . Parts Scanalyzed 1 | . . . 1 . Part Schematics Acquired 1 | . . . 1 . Parts Damaged . | . . . . . Bothacking | -11 -10 -10 -8 -8 ------------ Run | Yrd Mat Sub Mat Gar Used RIF Installer . | . . . . . Robots Hacked . | . . . . . Non-combat . | . . . . . Combat . | . . . . . Robot Hacks Applied . | . . . . . Relay Couplers Released 4 | . . . . 4 Machine Destruction 4 | . . . . 4 Fabnet Peak Effective % . | . . . . . Robots Rewired . | . . . . . Allies Hacked . | . . . . . Hacks Repelled . | . . . . . Allies | -11 -10 -10 -8 -8 -------- Run | Yrd Mat Sub Mat Gar Total Allies . | . . . . . Largest Group . | . . . . . Highest-Rated Group . | . . . . . Highest-Rated Ally . | . . . . . Total Orders . | . . . . . Ally Attacks . | . . . . . Total Damage . | . . . . . Kills . | . . . . . Allies Corrupted . | . . . . . Allies Melted . | . . . . . Intel | -11 -10 -10 -8 -8 ------- Run | Yrd Mat Sub Mat Gar Robot Analysis Total . | . . . . . Derelict Logs Recovered . | . . . . . Drone Launches . | . . . . . Drone Recoveries . | . . . . . Exploration | -11 -10 -10 -8 -8 ------------- Run | Yrd Mat Sub Mat Gar Turns Passed 4667 | 72 1476 903 1441 775 Spaces Moved 1681 | 42 374 481 564 220 Core 6 | 5 . . . 1 Treads 401 | 37 364 . . . Legs . | . . . . . Wheels 491 | . 10 481 . . Hover . | . . . . . Flight 783 | . . . 564 219 Fastest Speed 40 | 50 110 95 40 160 Average Speed 168 | 146 214 104 180 204 Slowest Speed 1720 | 160 320 140 200 1720 Overloaded Moves . | . . . . . Propulsion Burnouts . | . . . . . Robots Hopped . | . . . . . Cave-ins Triggered . | . . . . . Exploration Rate (%) 36 | 5 64 26 50 36 Regions Visited 4 Branch Regions 1 Pre-discovered Areas . | . . . . . Known Exits Taken 1 | . . . 1 . Unknown Exits Taken 3 | 1 1 1 . . Scrap Searched 6 | . . 6 . . Spaces Dug 5 | . . 1 2 2 Terrain Destroyed 287 | . . 1 234 52 Melee 5 | . . 1 2 2 Projectile . | . . . . . AOE 282 | . . . 232 50 Terrain Rammed . | . . . . . Walls Destroyed . | . . . . . Machines Disabled . | . . . . . Actions | -11 -10 -10 -8 -8 --------- Run | Yrd Mat Sub Mat Gar Total 3112 | 49 957 812 840 454 Wait 877 | . 516 230 119 12 Move 1678 | 41 373 480 564 220 Hop . | . . . . . Pick Up 79 | 2 10 15 31 21 Fast Attach 22 | 6 4 4 7 1 Attach 13 | . 2 6 1 4 Detach 1 | . 1 . . . Swap 38 | . 2 2 22 12 Drop 57 | . 1 24 15 17 Fire 192 | . 46 40 69 37 Melee 40 | . . 9 11 20 Ram 4 | . . . 1 3 Kick . | . . . . . Crush 2 | . 2 . . . Escape Stasis 107 | . . . . 107 Rewire . | . . . . . Trap . | . . . . . Miscellaneous 2 | . . 2 . . Route ------- -11/Scrapyard -10/Materials (discovered 4 exits: [*Mat x2] / [*Min] / *Sub) -10/Subcaves -8/Materials (discovered 2 exits: [*Fac] / Gar) -8/Garrison (discovered 1 exit: [*Fac]) History --------- Turn | Location | Event 9 | -11/Scrapyard | Discovered new exit (range 15) 73 | -11/Scrapyard | Entered Materials 301 | -10/Materials | Build established: Mutant 397 | -10/Materials | Discovered new exit (range 7) 838 | -10/Materials | Discovered new exit (range 3) 987 | -10/Materials | Discovered new exit (range 8) 1497 | -10/Materials | Discovered new exit (range 6) 1549 | -10/Materials | Entered Subcaves 1578 | -10/Subcaves | Core integrity fell below 50% 1606 | -10/Subcaves | Shifting Twisted Machinery released Sub. Machine Gun 1609 | -10/Subcaves | Shifting Twisted Machinery released Sub. Power Source 1629 | -10/Subcaves | Discovered new exit (range 10) 1722 | -10/Subcaves | Lost 6 parts (1p2n1u2w) 1742 | -10/Subcaves | Shifting Twisted Machinery released Mak. Kinetic Plating 1845 | -10/Subcaves | Shifting Twisted Machinery released Mak. Hammer 2016 | -10/Subcaves | Core integrity fell below 20% 2288 | -10/Subcaves | Visited 4L-MR0's lab 2304 | -10/Subcaves | Found Flightbrick 2452 | -10/Subcaves | Entered Materials 2452 | -8/Materials | Evolved 4 slots: Propulsion x2, Utility x2 2455 | -8/Materials | Attached Flightbrick, gained temporary slots: Utility x3 3652 | -8/Materials | First assault squad dispatched 3715 | -8/Materials | Destroyed 7 combat bots 3851 | -8/Materials | Discovered new exit (range 5) 3893 | -8/Materials | Identified exit to Garrison 3893 | -8/Materials | Entered Garrison 4053 | -8/Garrison | Triggered checkpoint 4130 | -8/Garrison | Garrison Relay disabled 4215 | -8/Garrison | Triggered checkpoint 4279 | -8/Garrison | Destroyed 7 combat bots 4449 | -8/Garrison | Triggered checkpoint 4454 | -8/Garrison | Core integrity fell below 50% 4473 | -8/Garrison | Discovered new exit (range 14) 4477 | -8/Garrison | Lost 3 parts (1p2u) 4529 | -8/Garrison | Triggered checkpoint 4605 | -8/Garrison | Triggered checkpoint 4660 | -8/Garrison | Core integrity fell below 20% 4668 | -8/Garrison | Destroyed by H-55 Commando with Gauss Rifle Last Messages --------------- 04619_ Slug penetrates Wall. 04626_ Slug penetrates Reinforced Barrier. 04641_ Slug penetrates Wall. 04644_ Penetrated by Slug. 04644_ Flight Unit destroyed. 04647_ Penetrated by Slug. 04647_ Slug penetrates Wall. 04647_ Minigun destroyed. 04650_ Penetrated by Slug. 04650_ Minigun destroyed. 04653_ Penetrated by Slug. 04653_ Flight Unit destroyed. 04653_ Slug penetrates Wall. 04659_ Slug penetrates H-55 Commando. 04662_ Penetrated by Slug. 04662_ Slug penetrates Wall. 04664_ Wall collapses. 04665_ Penetrated by Slug. 04665_ Slug penetrates Wall. 04666_ Wall collapses. Map ----- +----------------------------------------------------+ | ??????????????????????# | | ??????????????????????# ] | | ??????????????????????# #### # ## | | ??????????????????????# ## ## | | ??????????????????????# ### # | | ??????????????????????# #?## | | ??????????????????????# #??###### | | ??????????????????????# #???????? | | ??????????????????????# #???????? | | ??????????????????????# #???????? | | ??????????????????????# ###?????? | | ??????????????????????# #?????? | | ??????????????????????# < #?????? | | ??????????????????????# #?????? | | ??????????????????????# ###?????? | | ??????????????????????# #???????? | | ??????????????????????# #???????? | | ??????????????????????# #???????? | | ??????????????????????# #???????? | | ????????????????#####?# #???????? | | ?????##?????????# #?# #???????? | | ?????#xx######### ###! #???????? | | ?????#xx# = = #???????? | | ?????# h ^^ %= #???????? | | ?????# ;h ###############???????? | | ?????#?#;@ #?????????????????????? | | ??????###= #"#???????????????????? | | ??????# [*! "#???????????????????? | | ??????# %= "#???????????????????? | | ??????# "#???????????????????? | | ??????### #"#???????????????????? | | ????????# ###???????????????????? | | ????????### ?????????????????????? | | ???????????#?????????????????????? | | ?????????????????????????????????? | | | | | | | | | | | | | | | | | | | | | | | | | | | | | | | +----------------------------------------------------+ Best States ------------- Heat Dissipation 31 Coolant Potential 50 Energy Generation 15 Energy Capacity 250 Matter Stores 300 Matter Capacity 300 Sight Range 21 Robot Scan Range 14 Terrain Scan Range 14 Terrain Scan Density 10 Armor Coverage 950 Resistance: KI 10 Evasion (%) 62 Recoil Reduction 2 Authchip Count 16 Item Schematics ----------------- Multitool | -8/Materials | Scanalyzed Robot Schematics ------------------ None Fabricated ------------ Nothing Alien Tech Used ----------------- None Achievements -------------- None Challenges ------------ None Game ------ Seed MobileFireLink Manual? 0 Play Time 00:31:38 Cumulative 195.4 hours Start 2024.04.14 @ 16:52:52 End 2024.04.14 @ 17:25:21 Sessions 1 Manual Loads 0 Difficulty Rogue Special Mode None Game No. 157 Rogue 157 Adventurer 0 Explorer 0 Win Type - Total 4 Types 4/0/0/0/0/0/0/0/0 Lore% 69 Gallery% 77 Achievement% 64 Wizard Run 0 Options --------- Layout 2 ASCII 1 Keyboard 0 Movement Mouse Keybinds 0 Fullscreen 2 Font 24/Smallcaps Map View 50x44 Zoom Use 0% Tactical HUD 1 Map Filters NONE Filters NONE Steam 1 RUN: 117376af-39eb-41c2-94cd-3e0030d3e4d7